lending/lending_fUSD_20260222
["ID","MTS","AMOUNT","RATE_DAILY","PERIOD"]
[406320219,1771733458928,-554.045649,0.00041096,120]
[406320220,1771733458938,-151.0,0.00041096,120]
[406320221,1771733458947,-554.045649,0.00041096,120]
[406320222,1771733458957,-151.0,0.00041096,120]
[406320223,1771733458966,-151.0,0.00041096,120]
[406320224,1771733458976,-151.0,0.00041096,120]
[406320225,1771733458986,-554.045649,0.00041096,120]
[406320226,1771733458995,-151.0,0.00041096,120]
[406320227,1771733459005,-151.0,0.00041096,120]
[406320228,1771733459014,-192.519071,0.00041096,120]
[406320229,1771733459023,-554.045649,0.00041096,120]
[406320230,1771733459033,-151.0,0.00041096,120]
[406320231,1771733459042,-404.871126,0.00041096,120]
[406320232,1771733459051,-554.045649,0.00041096,120]
[406320233,1771733459061,-166.880652,0.00041096,120]
[406320234,1771733459070,-151.0,0.00041096,120]
[406320235,1771733459079,-151.0,0.00041096,120]
[406320236,1771733459089,-404.871126,0.00041096,120]
[406320237,1771733459098,-554.045649,0.00041096,120]
[406320238,1771733459107,-166.880652,0.00041096,120]
[406320239,1771733459117,-151.0,0.00041096,120]
[406320240,1771733459126,-151.0,0.00041096,120]
[406320241,1771733459136,-299.068484,0.00041096,120]
[406320242,1771733459145,-166.880652,0.00041096,120]
[406320243,1771733459155,-151.0,0.00041096,120]
[406320244,1771733459164,-554.045649,0.00041096,120]
[406320245,1771733459173,-151.0,0.00041096,31]
[406320246,1771733459181,-151.0,0.00041096,120]
[406320247,1771733459191,-554.045648,0.00041096,120]
[406320248,1771733459200,-151.0,0.00041096,31]
[406320249,1771733459209,-151.0,0.00041096,120]
[406320250,1771733459218,-404.871126,0.00041096,120]
[406320251,1771733459228,-166.880652,0.00041096,120]
[406320252,1771733459237,-151.0,0.00041096,31]
[406320253,1771733459246,-404.871126,0.00041096,120]
[406320254,1771733459255,-166.880652,0.00041096,120]
[406320255,1771733459264,-151.0,0.00041096,31]
[406320256,1771733459273,-404.871126,0.00041096,120]
[406320257,1771733459282,-263.434234,0.00041096,120]
[406320258,1771733459291,-166.880652,0.00041096,120]
[406320259,1771733459299,-404.871126,0.00041096,120]
[406320260,1771733459308,-166.880652,0.00041096,120]
[406320261,1771733459317,-151.0,0.00041096,31]
[406320262,1771733459327,-166.880652,0.00041096,120]
[406320263,1771733459336,-404.871126,0.00041096,120]
[406320264,1771733459354,-151.0,0.00041096,31]
[406320265,1771733459364,-404.871126,0.00041096,120]
[406320266,1771733459373,-166.880652,0.00041096,120]
[406320267,1771733459382,-151.0,0.00041096,31]
[406320268,1771733459391,-404.871126,0.00041096,120]
[406320269,1771733459400,-166.88065,0.00041096,120]
[406320270,1771733459409,-218.930464,0.00041096,31]
[406320271,1771733459418,-404.871126,0.00041096,120]
[406320272,1771733459427,-404.871126,0.00041096,120]
[406320273,1771733459437,-404.871126,0.00041096,120]
[406320274,1771733459446,-404.871126,0.00041096,120]
[406320275,1771733459456,-404.871126,0.00041096,120]
[406320276,1771733459466,-404.871133,0.00041096,120]
[406320277,1771733459475,-369.46,0.000411,14]
[406320278,1771733459484,-253.76,0.000411,14]
[406320279,1771733459495,-296.8998868,0.00041223,7]
[406320280,1771733459503,-300.0,0.00041232,30]
[406320281,1771733459513,-300.0,0.00041232,30]
[406320282,1771733459522,-5750.395542,0.00041233,120]
[406320283,1771733459532,-5750.395542,0.00041233,120]
[406320284,1771733459541,-5750.395542,0.00041233,120]
[406320285,1771733459550,-5750.395542,0.00041233,120]
[406320286,1771733459560,-5750.395542,0.00041233,120]
[406320287,1771733459569,-5750.395542,0.00041233,120]
[406320288,1771733459578,-5750.395542,0.00041233,120]
[406320289,1771733459587,-5750.395542,0.00041233,120]
[406320290,1771733459596,-5750.395542,0.00041233,120]
[406320291,1771733459605,-5750.395542,0.00041233,120]
[406320292,1771733459615,-5750.395542,0.00041233,120]
[406320293,1771733459624,-5750.395542,0.00041233,120]
[406320294,1771733459633,-5750.395542,0.00041233,120]
[406320295,1771733459642,-5750.395542,0.00041233,120]
[406320296,1771733459651,-5750.395542,0.00041233,120]
[406320297,1771733459798,-5750.395542,0.00041233,120]
[406320298,1771733459808,-5750.395542,0.00041233,120]
[406320299,1771733459817,-5750.395542,0.00041233,120]
[406320300,1771733459827,-5750.395542,0.00041233,120]
[406320301,1771733459836,-5750.39554206,0.00041233,120]
[406320302,1771733459846,-1038.5,0.00041278,30]
[406320303,1771733459862,-169.44,0.0004128,14]
[406320304,1771733459871,-310.637,0.00041339,2]
[406320305,1771733459880,-672.562,0.00041339,2]
[406320306,1771733459891,-689.24638722,0.00041393,28]
[406320307,1771733459900,-151.0,0.000414,120]
[406320308,1771733459910,-3153.50466584,0.00041414,120]
[406320309,1771733459920,-468.0,0.00041419,2]
[406320310,1771733459930,-150.0,0.00041419,2]
[406320311,1771733459940,-150.0,0.00041419,2]
[406320312,1771733459949,-184.0,0.00041419,2]
[406320313,1771733459960,-200.0,0.00041603,7]
[406320314,1771733459969,-200.0,0.00041603,7]
[406320315,1771733459979,-200.0,0.00041603,7]
[406320316,1771733459988,-200.0,0.00041603,7]
[406320317,1771733459997,-200.0,0.00041603,7]
[406320318,1771733460006,-200.0,0.00041603,7]
[406320319,1771733460016,-200.0,0.00041603,7]
[406320320,1771733460025,-200.0,0.00041603,7]
[406320321,1771733460034,-200.0,0.00041603,7]
[406320322,1771733460043,-200.0,0.00041603,2]
[406320323,1771733460053,-200.0,0.00041603,2]
[406320324,1771733460063,-200.0,0.00041603,2]
[406320325,1771733460072,-200.0,0.00041603,2]
[406320326,1771733460082,-200.0,0.00041603,2]
[406320327,1771733460091,-200.0,0.00041603,2]
[406320328,1771733460100,-200.0,0.00041603,2]
[406320329,1771733460109,-200.0,0.00041603,2]
[406320330,1771733460118,-200.0,0.00041603,2]
[406320331,1771733460127,-200.0,0.00041603,2]
[406320332,1771733460136,-200.0,0.00041603,2]
[406320333,1771733460145,-200.0,0.00041603,2]
[406320334,1771733460154,-200.0,0.00041603,2]
[406320335,1771733460163,-202.0,0.00041603,2]
[406320336,1771733460173,-200.0,0.00041603,7]
[406320337,1771733460182,-200.0,0.00041603,7]
[406320338,1771733460191,-200.0,0.00041603,7]
[406320339,1771733460200,-200.0,0.00041603,7]
[406320340,1771733460210,-200.0,0.00041603,7]
[406320341,1771733460219,-200.0,0.00041603,7]
[406320342,1771733460228,-200.0,0.00041603,7]
[406320343,1771733460238,-200.0,0.00041603,7]
[406320344,1771733460251,-200.0,0.00041603,7]
[406320345,1771733460260,-200.0,0.00041603,7]
[406320346,1771733460269,-200.0,0.00041603,7]
[406320347,1771733460279,-200.0,0.00041603,7]
[406320348,1771733460288,-200.0,0.00041603,7]
[406320349,1771733460297,-200.0,0.00041603,7]
[406320350,1771733460306,-200.0,0.00041603,7]
[406320351,1771733460316,-200.0,0.00041603,7]
[406320352,1771733460326,-200.0,0.00041603,7]
[406320353,1771733460335,-200.0,0.00041603,7]
[406320354,1771733460344,-200.0,0.00041603,7]
[406320355,1771733460354,-200.0,0.00041603,7]
[406320356,1771733460363,-200.0,0.00041603,7]
[406320357,1771733460372,-200.0,0.00041603,7]
[406320358,1771733460382,-200.0,0.00041603,7]
[406320359,1771733460391,-200.0,0.00041603,7]
[406320360,1771733460400,-200.0,0.00041603,7]
[406320361,1771733460409,-200.0,0.00041603,7]
[406320362,1771733460419,-200.0,0.00041628,120]
[406320363,1771733460428,-878.2,0.00041644,120]
[406320364,1771733460441,-300.0,0.00041776,30]
[406320365,1771733460450,-309.17152157,0.00041776,30]
[406320366,1771733460460,-500.0,0.00041777,120]
[406320367,1771733460470,-500.0,0.00041777,120]
[406320368,1771733460479,-500.0,0.00041777,120]
[406320369,1771733460489,-500.0,0.00041777,120]
[406320370,1771733460498,-500.0,0.00041777,120]
[406320371,1771733460507,-500.0,0.00041777,120]
[406320372,1771733460516,-500.0,0.00041777,120]
[406320373,1771733460525,-500.0,0.00041777,120]
[406320374,1771733460535,-500.0,0.00041777,120]
[406320375,1771733460545,-500.0,0.00041777,120]
[406320376,1771733460554,-500.0,0.00041777,120]
[406320377,1771733460564,-500.0,0.00041777,120]
[406320378,1771733460573,-500.0,0.00041777,120]
[406320379,1771733460582,-500.0,0.00041777,120]
[406320380,1771733460591,-500.0,0.00041777,120]
[406320381,1771733460600,-500.0,0.00041777,120]
[406320382,1771733460610,-500.0,0.00041777,120]
[406320383,1771733460619,-500.0,0.00041777,120]
[406320384,1771733460631,-500.0,0.00041777,120]
[406320385,1771733460640,-500.0,0.00041777,120]
[406320386,1771733460649,-500.0,0.00041777,120]
[406320387,1771733460658,-500.0,0.00041777,120]
[406320388,1771733460667,-500.0,0.00041777,120]
[406320389,1771733460676,-500.0,0.00041777,120]
[406320390,1771733460686,-500.0,0.00041777,120]
[406320391,1771733460695,-500.0,0.00041777,120]
[406320392,1771733460705,-500.0,0.00041777,120]
[406320393,1771733460714,-500.0,0.00041777,120]
[406320394,1771733460723,-500.0,0.00041777,120]
[406320395,1771733460732,-500.0,0.00041777,120]
[406320396,1771733460741,-500.0,0.00041777,120]
[406320397,1771733460751,-500.0,0.00041777,120]
[406320398,1771733460760,-500.0,0.00041777,120]
[406320399,1771733460771,-500.0,0.00041777,120]
[406320400,1771733460780,-500.0,0.00041777,120]
[406320401,1771733460790,-500.0,0.00041777,120]
[406320402,1771733460799,-500.0,0.00041777,120]
[406320403,1771733460808,-500.0,0.00041777,120]
[406320404,1771733460817,-500.0,0.00041777,120]
[406320405,1771733460826,-500.0,0.00041777,120]
[406320406,1771733460836,-500.0,0.00041777,120]
[406320407,1771733460846,-500.0,0.00041777,120]
[406320408,1771733460859,-500.0,0.00041777,120]
[406320409,1771733460868,-500.0,0.00041777,120]
[406320410,1771733460878,-500.0,0.00041777,120]
[406320411,1771733460887,-500.0,0.00041777,120]
[406320412,1771733460897,-500.0,0.00041777,120]
[406320413,1771733460907,-500.0,0.00041777,120]
[406320414,1771733460916,-500.0,0.00041777,120]
[406320415,1771733460928,-500.0,0.00041777,120]
[406320416,1771733460937,-500.0,0.00041777,120]
[406320417,1771733460946,-500.0,0.00041777,120]
[406320418,1771733460955,-500.0,0.00041777,120]
[406320419,1771733460966,-541.0,0.00041777,120]
[406320420,1771733460975,-500.0,0.00041777,120]
[406320421,1771733460984,-500.0,0.00041777,120]
[406320422,1771733460993,-500.0,0.00041777,120]
[406320423,1771733461003,-500.0,0.00041777,120]
[406320424,1771733461012,-500.0,0.00041777,120]
[406320425,1771733461021,-500.0,0.00041777,120]
[406320426,1771733461033,-500.0,0.00041777,120]
[406320427,1771733461043,-500.0,0.00041777,120]
[406320428,1771733461052,-530.0,0.00041777,120]
[406320429,1771733461061,-512.0,0.00041777,120]
[406320430,1771733461070,-1038.5,0.0004194,30]
[406320431,1771733461080,-159.38,0.00041982,14]
[406320432,1771733461089,-500.0,0.00041999,45]
[406320433,1771733461099,-238.03027968,0.00041999,120]
[406320434,1771733461108,-150.23,0.00042,120]
[406320435,1771733461117,-886.41637882,0.00042,120]
[406320436,1771733461126,-214.5,0.00042,120]
[406320437,1771733461135,-443.64451988,0.00042,120]
[406320438,1771733461144,-170.77663097,0.00042,120]
[406320439,1771733461154,-515.0,0.00042,120]
[406320440,1771733461163,-442.0,0.00042,120]
[406320441,1771733461172,-253.76,0.00042,14]
[406320442,1771733461181,-500.0,0.00042042,7]
[406320443,1771733461190,-151.0,0.000421,120]
[406320444,1771733461199,-1303.8,0.000421,30]
[406320445,1771733461209,-623.01963681,0.00042192,15]
[406320446,1771733461218,-1225.10533445,0.00042192,15]
[406320447,1771733461227,-166.29,0.00042215,120]
[406320448,1771733461237,-300.0,0.00042299,30]
[406320449,1771733461246,-7919.67884761,0.000423,30]
[406320450,1771733461256,-66400.0,0.000423,60]
[406320451,1771733461265,-159.38,0.00042361,14]
[406320452,1771733461275,-500.0,0.00042438,120]
[406320453,1771733461286,-1640.69624629,0.000425,120]
[406320454,1771733461297,-576.45458682,0.00042575,120]
[406320455,1771733461307,-1038.5,0.00042602,30]
[406320456,1771733461316,-555.7,0.000427,60]
[406320457,1771733461327,-2433.30175952,0.000427,7]
[406320458,1771733461336,-150.0,0.0004274,2]
[406320459,1771733461346,-193.32,0.00042763,120]
[406320460,1771733461355,-449.0934497,0.000428,120]
[406320461,1771733461364,-597.32264159,0.000428,120]
[406320462,1771733461373,-151.0,0.000428,120]
[406320463,1771733461383,-167.47733066,0.000428,30]
[406320464,1771733461391,-1510.75429434,0.0004282,2]
[406320465,1771733461401,-205.82204793,0.00042872,45]
[406320466,1771733461414,-188.45488461,0.000429,120]
[406320467,1771733461425,-581.02901529,0.000429,2]
[406320468,1771733461435,-221.0,0.0004295,30]
[406320469,1771733461444,-959.72089319,0.00043,2]
[406320470,1771733461454,-711.78534868,0.00043,120]
[406320471,1771733461463,-1723.88658694,0.00043,2]
[406320472,1771733461472,-230.25442746,0.00043,30]
[406320473,1771733461481,-713.55332306,0.00043,120]
[406320474,1771733461490,-150.0,0.00043014,120]
[406320475,1771733461499,-286.79832533,0.00043069,120]
[406320476,1771733461509,-283.58454636,0.00043089,120]
[406320477,1771733461518,-1118.28561878,0.000431,120]
[406320478,1771733461527,-6962.12,0.000431,2]
[406320479,1771733461537,-1003.72,0.00043158,120]
[406320480,1771733461548,-689.24638722,0.00043191,28]
[406320481,1771733461558,-10973.46975521,0.0004322,2]
[406320482,1771733461569,-200.0,0.00043233,120]
[406320483,1771733461579,-200.0,0.00043233,120]
[406320484,1771733461588,-500.0,0.00043238,120]
[406320485,1771733461597,-200.0,0.00043238,120]
[406320486,1771733461607,-300.0,0.00043288,30]
[406320487,1771733461616,-154.03173332,0.0004339,2]
[406320488,1771733461625,-524.27306136,0.00043425,60]
[406320489,1771733461634,-500.0,0.00043425,60]
[406320490,1771733461644,-500.0,0.00043425,60]
[406320491,1771733461653,-1068.96114361,0.0004344,120]
[406320492,1771733461663,-555.58331269,0.00043495,45]
[406320493,1771733461673,-449.57695915,0.00043495,7]
[406320494,1771733461682,-151.0,0.000435,120]
[406320495,1771733461691,-1428.62,0.000435,90]
[406320496,1771733461701,-592.05,0.00043562,30]
[406320497,1771733461710,-623.01963681,0.0004359,15]
[406320498,1771733461719,-977.00662688,0.00043613,120]
[406320499,1771733461728,-300.0,0.00043649,30]
[406320500,1771733461737,-66400.0,0.0004365,60]
[406320501,1771733461746,-175.51636598,0.0004365,30]
[406320502,1771733461755,-375.81390672,0.00043673,5]
[406320503,1771733461764,-150.0,0.00043673,10]
[406320504,1771733461773,-150.0,0.00043673,10]
[406320505,1771733461783,-165.09819146,0.00043673,10]
[406320506,1771733461792,-300.220928,0.00043696,117]
[406320507,1771733461803,-246.82795895,0.000437,120]
[406320508,1771733461813,-406.8149406,0.000437,2]
[406320509,1771733461822,-300.0,0.00043799,30]
[406320510,1771733461831,-1000.0,0.000438,30]
[406320511,1771733461840,-184021.75670802,0.000438,30]
[406320512,1771733461850,-380.364484,0.000438,30]
[406320513,1771733461976,-614.31523366,0.00043808,120]
[406320514,1771733461985,-189.6233591,0.00043836,2]
[406320515,1771733461995,-448.0066,0.00043836,120]
[406320516,1771733462004,-448.0066,0.00043836,120]
[406320517,1771733462013,-448.0066,0.00043836,120]
[406320518,1771733462023,-448.0066,0.00043836,120]
[406320519,1771733462033,-448.0066,0.00043836,120]
[406320520,1771733462042,-448.0066,0.00043836,120]
[406320521,1771733462053,-448.0066,0.00043836,120]
[406320522,1771733462062,-448.0066,0.00043836,120]
[406320523,1771733462071,-448.0066,0.00043836,120]
[406320524,1771733462080,-448.0066,0.00043836,120]
[406320525,1771733462089,-448.0066,0.00043836,120]
[406320526,1771733462100,-448.0066,0.00043836,120]
[406320527,1771733462109,-448.0066,0.00043836,120]
[406320528,1771733462118,-448.0066,0.00043836,120]
[406320529,1771733462127,-448.0066,0.00043836,120]
[406320530,1771733462137,-448.0066,0.00043836,120]
[406320531,1771733462147,-448.0066,0.00043836,120]
[406320532,1771733462157,-448.0066,0.00043836,120]
[406320533,1771733462166,-448.0066,0.00043836,120]
[406320534,1771733462176,-448.006609,0.00043836,120]
[406320535,1771733462186,-493.3,0.00043836,120]
[406320536,1771733462196,-150.0,0.00043836,2]
[406320537,1771733462205,-500.0,0.00043899,120]
[406320538,1771733462214,-3540.81089905,0.000439,2]
[406320539,1771733462224,-406.8149406,0.00043958,2]
[406320540,1771733462235,-500.0,0.00043973,60]
[406320541,1771733462244,-500.0,0.00043973,60]
[406320542,1771733462254,-1116.00431485,0.00043987,120]
[406320543,1771733462264,-300.0,0.00043999,30]
[406320544,1771733462273,-434.95,0.00044,120]
[406320545,1771733462282,-500.0,0.00044,30]
[406320546,1771733462292,-500.0,0.00044,30]
[406320547,1771733462302,-11000.0,0.00044,2]
[406320548,1771733462312,-228.77760116,0.00044,120]
[406320549,1771733462321,-204.25852786,0.00044,2]
[406320550,1771733462330,-368.44841568,0.00044,120]
[406320551,1771733462340,-572.89890933,0.00044,120]
[406320552,1771733462349,-3200.0,0.00044,120]
[406320553,1771733462358,-502.68588342,0.00044035,120]
[406320554,1771733462367,-500.0,0.0004406,60]
[406320555,1771733462377,-500.0,0.0004406,30]
[406320556,1771733462387,-500.0,0.0004406,60]
[406320557,1771733462396,-210.58321445,0.0004406,60]
[406320558,1771733462406,-398.74629718,0.00044089,120]
[406320559,1771733462415,-300.0,0.00044099,30]
[406320560,1771733462424,-81298.63159191,0.000441,2]
[406320561,1771733462433,-151.0,0.0004411,90]
[406320562,1771733462442,-151.0,0.0004411,90]
[406320563,1771733462451,-151.0,0.0004411,90]
[406320564,1771733462460,-151.0,0.0004411,90]
[406320565,1771733462469,-215.749053,0.0004411,90]
[406320566,1771733462479,-8000.0,0.00044136,120]
[406320567,1771733462488,-1616.0,0.0004415,120]
[406320568,1771733462497,-300.0,0.0004419,30]
[406320569,1771733462506,-999.0,0.00044191,120]
[406320570,1771733462517,-999.0,0.00044191,120]
[406320571,1771733462526,-999.0,0.00044191,120]
[406320572,1771733462535,-999.0,0.00044191,120]
[406320573,1771733462554,-999.0,0.00044191,120]
[406320574,1771733462564,-999.0,0.00044191,120]
[406320575,1771733462573,-999.0,0.00044191,120]
[406320576,1771733462584,-999.0,0.00044191,120]
[406320577,1771733462593,-999.0,0.00044191,120]
[406320578,1771733462602,-999.0,0.00044191,120]
[406320579,1771733462612,-999.0,0.00044191,120]
[406320580,1771733462620,-999.0,0.00044191,120]
[406320581,1771733462629,-999.0,0.00044191,120]
[406320582,1771733462638,-999.0,0.00044191,120]
[406320583,1771733462648,-999.0,0.00044191,120]
[406320584,1771733462658,-999.0,0.00044191,120]
[406320585,1771733462667,-999.0,0.00044191,120]
[406320586,1771733462676,-999.0,0.00044191,120]
[406320587,1771733462685,-314.6725596,0.00044191,120]
[406320588,1771733462694,-151.0,0.000442,120]
[406320589,1771733462703,-406.8149406,0.00044216,2]
[406320590,1771733462713,-150.60278683,0.00044221,10]
[406320591,1771733462722,-250.0,0.00044221,10]
[406320592,1771733462732,-238.8169372,0.00044275,2]
[406320593,1771733462741,-500.0,0.00044282,120]
[406320594,1771733462750,-500.0,0.00044282,120]
[406320595,1771733462759,-500.0,0.00044282,120]
[406320596,1771733462768,-500.0,0.00044282,120]
[406320597,1771733462778,-500.0,0.00044282,120]
[406320598,1771733462787,-500.0,0.00044282,120]
[406320599,1771733462797,-500.0,0.00044282,120]
[406320600,1771733462806,-500.0,0.00044282,120]
[406320601,1771733462816,-500.0,0.00044282,120]
[406320602,1771733462826,-500.0,0.00044282,120]
[406320603,1771733462836,-500.0,0.00044282,120]
[406320604,1771733462845,-236.11508189,0.00044282,120]
[406320605,1771733462858,-150.0,0.000443,58]
[406320606,1771733462867,-500.0,0.00044383,120]
[406320607,1771733462877,-500.0,0.00044383,120]
[406320608,1771733462886,-500.0,0.00044383,120]
[406320609,1771733462897,-500.0,0.00044383,120]
[406320610,1771733462907,-500.0,0.00044383,120]
[406320611,1771733462916,-500.0,0.00044383,120]
[406320612,1771733462926,-500.0,0.00044383,120]
[406320613,1771733462935,-500.0,0.00044383,120]
[406320614,1771733462945,-500.0,0.00044383,120]
[406320615,1771733462955,-500.0,0.00044383,120]
[406320616,1771733462965,-500.0,0.00044383,120]
[406320617,1771733462975,-500.0,0.00044383,120]
[406320618,1771733462984,-500.0,0.00044383,120]
[406320619,1771733462993,-500.0,0.00044383,120]
[406320620,1771733463003,-500.0,0.00044383,120]
[406320621,1771733463012,-500.0,0.00044383,120]
[406320622,1771733463021,-309.6,0.00044383,120]
[406320623,1771733463030,-500.0,0.00044383,120]
[406320624,1771733463040,-500.0,0.00044383,120]
[406320625,1771733463049,-500.0,0.00044383,120]
[406320626,1771733463059,-500.0,0.00044383,120]
[406320627,1771733463068,-532.22711233,0.00044383,120]
[406320628,1771733463077,-500.0,0.00044383,2]
[406320629,1771733463087,-500.0,0.00044383,2]
[406320630,1771733463097,-500.0,0.00044383,2]
[406320631,1771733463106,-500.0,0.00044383,2]
[406320632,1771733463115,-500.0,0.00044383,2]
[406320633,1771733463125,-500.0,0.00044383,2]
[406320634,1771733463135,-500.0,0.00044383,2]
[406320635,1771733463144,-500.0,0.00044383,2]
[406320636,1771733463153,-500.0,0.00044383,2]
[406320637,1771733463162,-500.0,0.00044383,2]
[406320638,1771733463171,-214.3,0.00044383,2]
[406320639,1771733463181,-203.43609164,0.00044383,120]
[406320640,1771733463190,-193.91,0.00044383,120]
[406320641,1771733463200,-500.0,0.00044383,120]
[406320642,1771733463210,-514.53027809,0.00044383,120]
[406320643,1771733463219,-500.0,0.00044383,120]
[406320644,1771733463229,-462.4417753,0.00044383,120]
[406320645,1771733463239,-500.0,0.00044383,120]
[406320646,1771733463248,-500.0,0.00044383,120]
[406320647,1771733463257,-500.0,0.00044383,120]
[406320648,1771733463266,-500.0,0.00044383,120]
[406320649,1771733463276,-500.0,0.00044383,120]
[406320650,1771733463285,-500.0,0.00044383,120]
[406320651,1771733463294,-500.0,0.00044383,120]
[406320652,1771733463304,-500.0,0.00044383,120]
[406320653,1771733463313,-500.0,0.00044383,120]
[406320654,1771733463322,-500.0,0.00044383,120]
[406320655,1771733463332,-500.0,0.00044383,120]
[406320656,1771733463341,-500.0,0.00044383,120]
[406320657,1771733463351,-500.0,0.00044383,120]
[406320658,1771733463360,-500.0,0.00044383,120]
[406320659,1771733463370,-500.0,0.00044383,120]
[406320660,1771733463379,-500.0,0.00044383,120]
[406320661,1771733463388,-500.0,0.00044383,120]
[406320662,1771733463399,-500.0,0.00044383,120]
[406320663,1771733463408,-500.0,0.00044383,120]
[406320664,1771733463418,-500.0,0.00044383,120]
[406320665,1771733463426,-500.0,0.00044383,120]
[406320666,1771733463435,-500.0,0.00044383,120]
[406320667,1771733463445,-500.0,0.00044383,120]
[406320668,1771733463454,-500.0,0.00044383,120]
[406320669,1771733463463,-500.0,0.00044383,120]
[406320670,1771733463473,-500.0,0.00044383,120]
[406320671,1771733463482,-500.0,0.00044383,120]
[406320672,1771733463491,-500.0,0.00044383,120]
[406320673,1771733463500,-500.0,0.00044383,120]
[406320674,1771733463510,-500.0,0.00044383,120]
[406320675,1771733463519,-500.0,0.00044383,120]
[406320676,1771733463528,-500.0,0.00044383,2]
[406320677,1771733463537,-500.0,0.00044383,2]
[406320678,1771733463546,-500.0,0.00044383,2]
[406320679,1771733463556,-500.0,0.00044383,2]
[406320680,1771733463565,-500.0,0.00044383,2]
[406320681,1771733463574,-500.0,0.00044383,2]
[406320682,1771733463583,-500.0,0.00044383,2]
[406320683,1771733463592,-500.0,0.00044383,2]
[406320684,1771733463601,-500.0,0.00044383,2]
[406320685,1771733463610,-431.76425137,0.00044383,2]
[406320686,1771733463619,-500.0,0.00044383,120]
[406320687,1771733463628,-500.0,0.00044383,120]
[406320688,1771733463637,-583.35061317,0.00044383,120]
[406320689,1771733463646,-387.85474857,0.00044383,120]
[406320690,1771733463655,-500.0,0.00044383,60]
[406320691,1771733463664,-500.0,0.00044383,120]
[406320692,1771733463674,-500.0,0.00044383,120]
[406320693,1771733463683,-500.0,0.00044383,120]
[406320694,1771733463692,-474.92425198,0.00044383,120]
[406320695,1771733463701,-222.76398347,0.00044383,120]
[406320696,1771733463711,-311.62109703,0.00044383,120]
[406320697,1771733463720,-590.59358493,0.00044383,120]
[406320698,1771733463730,-475.81757044,0.00044383,2]
[406320699,1771733463739,-228.88066169,0.00044383,120]
[406320700,1771733463749,-322.12540311,0.00044383,120]
[406320701,1771733463757,-247.15748281,0.00044383,120]
[406320702,1771733463767,-527.13572591,0.00044383,120]
[406320703,1771733463776,-288.56571399,0.00044383,120]
[406320704,1771733463785,-637.8752092,0.00044383,120]
[406320705,1771733463795,-321.53247457,0.00044383,2]
[406320706,1771733463804,-358.52948684,0.00044383,120]
[406320707,1771733463813,-254.74187297,0.00044383,120]
[406320708,1771733463823,-500.0,0.00044383,2]
[406320709,1771733463832,-500.7786499,0.00044383,2]
[406320710,1771733463842,-500.0,0.00044383,120]
[406320711,1771733463972,-375.4291382,0.00044383,120]
[406320712,1771733463982,-339.62319572,0.00044383,120]
[406320713,1771733463991,-237.14013161,0.00044383,120]
[406320714,1771733464000,-500.0,0.00044383,120]
[406320715,1771733464009,-500.0,0.00044383,120]
[406320716,1771733464018,-500.0,0.00044383,120]
[406320717,1771733464027,-500.0,0.00044383,120]
[406320718,1771733464036,-168.11750113,0.00044383,120]